bitfinex/quotes_SOLUSD_20251124
["timestamp","ask_amount","ask_price","bid_price","bid_amount"]
[1763978901606,2.75596392,129.43,129.41,0.2]
[1763978901832,2.75596392,129.43,129.41,0.89]
[1763978902034,0.96569839,129.44,129.42,0.69]
[1763978902213,3.72166231,129.44,129.41,0.89]
[1763978905625,0.16158069,129.42,129.41,0.89]
[1763978915947,0.16158069,129.42,129.41,3.64596392]
[1763978916148,0.14423231,129.46,129.42,0.69]
[1763978916354,0.14423231,129.46,129.45,30.66575161]
[1763978916558,0.14423231,129.46,129.45,0.69]
[1763978916732,0.14423231,129.46,129.45,3.44596392]
[1763978917231,0.14423231,129.46,129.45,0.69]
[1763978917548,0.14423231,129.46,129.44,3.42]
[1763978917753,0.86423231,129.46,129.44,3.42]
[1763978918151,0.14423231,129.46,129.45,0.69]
[1763978918452,0.14423231,129.46,129.44,4.11]
[1763978918628,0.14423231,129.46,129.44,3.42]
[1763978918827,0.86423231,129.46,129.44,3.42]
[1763978920061,0.14423231,129.46,129.44,3.42]
[1763978920838,0.86423231,129.46,129.44,3.42]
[1763978921153,0.14423231,129.46,129.44,3.42]
[1763978921332,5.17097006,129.46,129.44,3.42]
[1763978921839,5.99236154,129.45,129.42,62.79]
[1763978922440,1.68562379,129.45,129.42,62.79]
[1763978922651,0.72,129.45,129.42,62.79]
[1763978925270,4.30673775,129.43,129.41,62.3]
[1763978925435,4.30673775,129.42,129.41,62.3]
[1763978925641,4.30673775,129.42,129.41,0.2]
[1763978925844,5.02673775,129.42,129.41,0.2]
[1763978926961,4.30673775,129.42,129.41,0.2]
[1763978929368,23.12769775,129.42,129.41,0.2]
[1763978931263,18.12096,129.42,129.41,0.91]
[1763978931461,0.15258444,129.43,129.41,0.91]
[1763978931764,0.15258444,129.43,129.42,4.13]
[1763978932269,17.20265382,129.45,129.43,0.16]
[1763978932578,0.14779895,129.46,129.45,9.78882769]
[1763978932876,0.14779895,129.46,129.45,13.20882769]
[1763978933056,0.14779895,129.46,129.45,17.51556544]
[1763978934880,0.14779895,129.46,129.45,17.65772701]
[1763978935087,0.14779895,129.46,129.45,25.38271735]
[1763978935380,0.16192431,129.47,129.45,25.38271735]
[1763978935569,0.16192431,129.47,129.46,14.09556544]
[1763978935968,0.16192431,129.47,129.46,21.81995907]
[1763978936282,0.16192431,129.47,129.46,39.94091907]
[1763978937371,0.16192431,129.47,129.46,32.21652544]
[1763978937780,0.16192431,129.47,129.46,39.94091907]
[1763978937992,0.16192431,129.47,129.46,102.18308064]
[1763978939277,0.16192431,129.47,129.46,102.74207365]
[1763978939777,0.16192431,129.47,129.46,90.71094227]
[1763978940081,0.16192431,129.47,129.46,102.74207365]
[1763978940978,0.16192431,129.47,129.45,9.78882769]
[1763978941182,0.16192431,129.47,129.46,3.42]
[1763978941685,5.16866206,129.47,129.41,9.98882769]
[1763978941858,4.30673775,129.43,129.41,0.2]
[1763978942192,4.30673775,129.44,129.41,0.2]
[1763978942583,0.7,129.43,129.41,0.2]
[1763978942761,22.42769775,129.45,129.41,0.2]
[1763978942966,0.7,129.45,129.41,0.2]
[1763978943162,0.7,129.45,129.41,4.50673775]
[1763978943393,5.00673775,129.45,129.41,0.2]
[1763978943598,4.30673775,129.45,129.41,0.2]
[1763978943770,23.12769775,129.46,129.41,4.50673775]
[1763978944392,0.7,129.45,129.41,4.50673775]
[1763978945580,0.14019862,129.42,129.41,4.50673775]
[1763978946275,0.14019862,129.42,129.41,14.43772701]
[1763978946483,0.14019862,129.42,129.41,14.99746612]
[1763978946684,0.14019862,129.42,129.41,22.72484422]
[1763978946986,0.14019862,129.42,129.41,84.82484422]
[1763978947185,0.14019862,129.42,129.41,89.13158197]
[1763978949504,0.14019862,129.42,129.41,72.79072837]
[1763978949811,0.14019862,129.42,129.41,89.13158197]
[1763978951375,0.14019862,129.42,129.41,191.13158197]
[1763978951575,0.14019862,129.42,129.41,190.57184286]
[1763978952201,0.16581094,129.43,129.42,66.4087007]
[1763978952577,0.16581094,129.43,129.42,71.27502829]
[1763978953378,0.16581094,129.43,129.42,81.06385598]
[1763978954405,0.16581094,129.43,129.42,80.17711823]
[1763978954979,0.16581094,129.43,129.42,75.87038048]
[1763978955211,0.16581094,129.43,129.42,80.17711823]
[1763978955709,0.16581094,129.43,129.42,87.90389925]
[1763978955906,0.16581094,129.43,129.42,92.210637]
[1763978957408,0.16433653,129.44,129.43,71.58281813]
[1763978957610,0.16433653,129.44,129.43,75.88955588]
[1763978957804,0.86433653,129.44,129.43,61.79399044]
[1763978958006,0.86433653,129.44,129.43,66.10072819]
[1763978959410,0.16433653,129.44,129.43,61.79399044]
[1763978959723,0.86433653,129.44,129.43,4.30673775]
[1763978959923,0.86433653,129.44,129.43,7.72673775]
[1763978965230,0.7,129.44,129.43,7.72673775]
[1763978965612,0.83978528,129.44,129.43,7.72673775]
[1763978968452,0.13978528,129.44,129.43,17.51556544]
[1763978968730,0.13978528,129.44,129.43,25.24174947]
[1763978968905,0.13978528,129.44,129.43,17.51556544]
[1763978969220,0.14700929,129.45,129.44,61.65420516]
[1763978969525,0.14700929,129.45,129.44,177.7497706]
[1763978975524,0.84700929,129.45,129.44,171.38094291]
[1763978975861,0.84700929,129.45,129.44,3.42]
[1763978976024,0.14700929,129.45,129.44,7.72673775]
[1763978976435,0.84700929,129.45,129.44,7.72673775]
[1763978978261,0.14700929,129.45,129.44,7.72673775]
[1763978978844,0.14700929,129.45,129.44,17.51556544]
[1763978979768,0.14700929,129.45,129.44,25.24115258]
[1763978979945,0.14700929,129.45,129.44,17.51556544]
[1763978980663,0.14700929,129.45,129.44,15.96323736]
[1763978981270,0.14700929,129.45,129.44,179.61744252]
[1763978984691,0.14700929,129.45,129.44,187.34302966]
[1763978984979,0.14700929,129.45,129.44,187.48519123]
[1763978985178,0.16624247,129.47,129.46,71.1338332]
[1763978985355,0.7,129.49,129.46,77.30824287]
[1763978985556,0.84800705,129.49,129.48,2.75440967]
[1763978985776,0.84800705,129.49,129.48,6.17440967]
[1763978986076,0.14800705,129.49,129.48,88.46804312]
[1763978986373,0.15878606,129.5,129.48,96.19124361]
[1763978986546,0.15878606,129.5,129.49,13.10183597]
[1763978986954,0.15082881,129.51,129.5,0.14216157]
[1763978987172,0.15464512,129.52,129.51,9.78882769]
[1763978987383,0.15464512,129.52,129.51,12.54323736]
[1763978987582,0.14910551,129.53,129.52,12.68539893]
[1763978987789,0.14910551,129.53,129.52,16.10539893]
[1763978988890,0.14910551,129.53,129.52,23.82621424]
[1763978991367,0.14910551,129.53,129.52,16.10539893]
[1763978991800,0.14910551,129.53,129.52,23.82621424]
[1763978992306,0.14910551,129.53,129.52,16.10539893]
[1763978992472,0.14910551,129.53,129.52,34.22635893]
[1763978993082,0.85853193,129.55,129.53,70.98472769]
[1763978993268,0.85699036,129.54,129.53,73.73913736]
[1763978993781,0.16699036,129.54,129.53,73.73913736]
[1763978994891,0.85699036,129.54,129.53,61.1959]
[1763978995096,0.85699036,129.54,129.53,77.15913736]
[1763978995563,0.16699036,129.54,129.53,77.15913736]
[1763978995767,0.16699036,129.54,129.53,103.00031661]
[1763978996367,0.16699036,129.54,129.53,95.28009736]
[1763978996989,0.16699036,129.54,129.53,77.15913736]
[1763978997486,0.85699036,129.54,129.53,77.15913736]
[1763978997695,0.16699036,129.54,129.53,77.15913736]
[1763978999093,0.16699036,129.54,129.53,179.15913736]
[1763978999482,0.85699036,129.54,129.53,179.15913736]
[1763979000497,0.85699036,129.54,129.53,67.37030967]
[1763979000700,0.85699036,129.54,129.53,64.6159]
[1763979000876,0.85699036,129.54,129.53,67.37030967]
[1763979001074,0.85699036,129.54,129.53,64.6159]
[1763979001401,0.85699036,129.54,129.53,67.37030967]
[1763979003396,0.85699036,129.54,129.53,64.6159]
[1763979003701,0.85699036,129.54,129.53,60.4759]
[1763979003910,0.16699036,129.54,129.53,66.65030967]
[1763979004094,0.85699036,129.54,129.53,63.8959]
[1763979004299,0.85699036,129.54,129.53,66.65030967]
[1763979005000,0.85699036,129.54,129.53,63.8959]
[1763979005504,0.69,129.54,129.53,63.8959]
[1763979005709,0.84906675,129.54,129.53,63.8959]
[1763979006586,0.84906675,129.54,129.53,66.65030967]
[1763979007167,0.84906675,129.54,129.53,63.8959]
[1763979007371,0.84906675,129.54,129.53,63.23030967]
[1763979007599,0.84906675,129.54,129.53,63.8959]
[1763979010403,0.15906675,129.54,129.53,63.8959]
[1763979010579,0.84906675,129.54,129.53,63.8959]
[1763979012508,3.60347642,129.54,129.53,63.8959]
[1763979012895,0.84906675,129.54,129.53,63.8959]
[1763979013587,3.60347642,129.54,129.53,63.8959]
[1763979013789,0.84906675,129.54,129.53,63.8959]
[1763979014398,0.84906675,129.54,129.53,3.42]
[1763979016001,3.60347642,129.54,129.53,3.42]
[1763979016386,3.60347642,129.54,129.51,60.4759]
[1763979016586,2.75440967,129.52,129.51,60.4759]
[1763979016807,0.68,129.53,129.51,60.4759]
[1763979017007,0.68,129.52,129.51,60.4759]
[1763979019694,3.43440967,129.52,129.5,63.8959]
[1763979020314,0.68,129.51,129.5,63.8959]
[1763979023619,3.43440967,129.51,129.5,3.42]
[1763979025509,3.59377131,129.51,129.5,3.42]
[1763979025994,21.71473131,129.51,129.5,3.42]
[1763979026619,21.71473131,129.51,129.46,102.66]
[1763979026620,3.59377131,129.51,129.46,60.4759]
[1763979026819,2.75440967,129.49,129.47,3.42]
[1763979027198,0.68,129.48,129.47,3.42]
[1763979028498,0.68,129.5,129.47,6.17440967]
[1763979028702,0.68,129.5,129.48,2.75440967]
[1763979028893,0.68,129.5,129.49,3.42]
[1763979033833,0.83936164,129.51,129.49,63.8959]
[1763979036531,21.71473131,129.51,129.49,63.8959]
[1763979036828,0.68,129.5,129.49,63.8959]
[1763979037728,21.03473131,129.51,129.49,63.8959]
[1763979037928,0.68,129.5,129.49,63.8959]
[1763979041405,3.43440967,129.5,129.49,63.8959]
[1763979041729,3.43440967,129.5,129.47,3.42]
[1763979041936,3.43440967,129.49,129.47,3.42]
[1763979042139,2.75440967,129.48,129.47,3.42]
[1763979042438,3.43440967,129.48,129.47,3.42]
[1763979042738,4.9860502,129.48,129.47,3.42]
[1763979043235,18.80096,129.48,129.44,60.4759]
[1763979043414,4.9860502,129.47,129.45,3.42]
[1763979043729,0.68,129.47,129.45,3.42]
[1763979043923,18.12096,129.48,129.45,3.42]
[1763979043924,0.68,129.46,129.45,3.42]
[1763979045139,18.12096,129.48,129.45,4.08]
[1763979045327,4.3060502,129.46,129.43,60.4759]
[1763979045528,4.3060502,129.44,129.43,63.8959]
[1763979045728,4.3060502,129.44,129.43,3.42]
[1763979045933,4.9960502,129.44,129.41,0.2]
[1763979046238,18.12096,129.45,129.41,3.62]
[1763979046239,4.3060502,129.42,129.41,3.62]
[1763979046737,4.9960502,129.42,129.41,3.62]
[1763979047327,18.12096,129.44,129.41,3.62]
[1763979047328,23.1170102,129.44,129.41,3.62]
[1763979047529,0.69,129.43,129.41,3.62]
[1763979051149,0.69,129.44,129.41,3.62]
[1763979051354,0.69,129.45,129.42,5.0060502]
[1763979051647,0.85782932,129.46,129.42,65.4819502]
[1763979051847,0.16782932,129.46,129.43,5.0060502]
[1763979052144,0.16782932,129.46,129.44,3.42]
[1763979052823,0.16782932,129.46,129.44,7.7260502]
[1763979053445,0.16782932,129.46,129.45,5.0060502]
[1763979053653,0.16782932,129.46,129.45,14.79487789]
[1763979053831,0.16782932,129.46,129.45,15.49618164]
[1763979054553,0.16782932,129.46,129.45,1.25914218]
[1763979054748,0.16782932,129.46,129.45,3.42]
[1763979055637,0.16782932,129.46,129.45,7.7260502]
[1763979056342,0.16782932,129.46,129.45,3.42]
[1763979056725,0.85782932,129.46,129.45,3.42]
[1763979057950,0.16782932,129.46,129.45,3.42]
[1763979059953,0.85782932,129.46,129.45,3.42]
[1763979061364,5.16387952,129.46,129.43,3.42]
[1763979061533,4.9960502,129.45,129.43,3.42]
[1763979061961,0.69,129.44,129.43,3.42]
[1763979062144,0.69,129.45,129.43,3.42]
[1763979063277,0.16782932,129.46,129.43,7.7260502]
[1763979063445,0.85782932,129.46,129.43,7.7260502]
[1763979064373,0.85782932,129.46,129.43,68.2019502]
[1763979065360,0.69,129.46,129.43,68.2019502]
[1763979065556,0.16275681,129.45,129.44,5.0060502]
[1763979068770,0.16275681,129.45,129.44,14.79487789]
[1763979069175,0.16275681,129.45,129.44,15.35416927]
[1763979069478,0.16275681,129.45,129.44,14.65416927]
[1763979069678,0.16275681,129.45,129.44,177.83006927]
[1763979069848,0.16275681,129.45,129.44,177.27077789]
[1763979071756,0.16275681,129.45,129.44,184.99636503]
[1763979071965,0.16275681,129.45,129.44,177.27077789]
[1763979072291,0.16275681,129.45,129.44,184.99636503]
[1763979072453,0.16275681,129.45,129.44,177.41293946]
[1763979072660,0.16275681,129.45,129.44,185.1385266]
[1763979073176,0.15537939,129.46,129.45,70.10197088]
[1763979073374,0.15537939,129.46,129.45,78.52802108]
[1763979076172,0.15537939,129.46,129.45,78.52802108]
[1763979078991,0.82537939,129.46,129.45,60.31314319]
[1763979079188,0.82537939,129.46,129.45,68.03919339]
[1763979079370,0.15537939,129.46,129.45,68.03919339]
[1763979083873,0.15537939,129.46,129.45,77.82802108]
[1763979084065,0.15537939,129.46,129.45,86.91431517]
[1763979084492,0.13931742,129.47,129.46,60.29992537]
[1763979084808,0.13931742,129.47,129.46,167.26597557]
[1763979085372,0.67,129.51,129.47,9.78882769]
[1763979085693,0.81238961,129.5,129.49,4.3060502]
[1763979087496,0.14238961,129.5,129.49,177.61334889]
[1763979087672,0.14238961,129.5,129.49,177.05480326]
[1763979088608,0.14238961,129.5,129.49,184.77740732]
[1763979090773,0.14238961,129.5,129.49,184.11740732]
[1763979090974,0.14238961,129.5,129.49,82.11740732]
[1763979091386,0.81238961,129.5,129.49,74.25264169]
[1763979091690,0.14238961,129.5,129.49,69.94659149]
[1763979091882,0.14238961,129.5,129.49,64.463814]
[1763979092207,0.81238961,129.5,129.49,64.463814]
[1763979092502,0.14238961,129.5,129.49,64.463814]
[1763979092894,0.14238961,129.5,129.49,82.584774]
[1763979093696,0.81238961,129.5,129.49,82.584774]
[1763979095281,0.14238961,129.5,129.49,82.584774]
[1763979095484,0.14238961,129.5,129.49,88.29962898]
[1763979095793,0.81238961,129.5,129.49,10.02090518]
[1763979096178,0.81238961,129.5,129.49,5.71485498]
[1763979096378,0.81238961,129.5,129.49,7.7260502]
[1763979098905,0.81238961,129.5,129.49,3.42]
[1763979099102,0.81238961,129.5,129.49,7.7260502]
[1763979099881,0.81238961,129.5,129.49,69.8260502]
[1763979100709,0.14238961,129.5,129.49,69.8260502]
[1763979101795,0.81238961,129.5,129.49,69.8260502]
[1763979102006,0.14238961,129.5,129.49,69.8260502]
[1763979104594,0.14238961,129.5,129.49,68.272944]
[1763979105312,0.67,129.51,129.49,68.272944]
[1763979105506,0.67,129.51,129.5,2.752944]
[1763979105825,0.81399103,129.51,129.49,62.1]
[1763979105989,3.56693503,129.51,129.5,3.42]
[1763979107718,21.68789503,129.51,129.5,3.42]
[1763979108089,0.81399103,129.51,129.5,3.42]
[1763979109031,0.81399103,129.51,129.5,65.52]
[1763979117805,0.81399103,129.51,129.5,3.42]
[1763979121522,0.14399103,129.51,129.5,6.172944]
[1763979122004,0.84399103,129.51,129.5,6.172944]
[1763979123106,0.14399103,129.51,129.5,6.172944]
[1763979123709,0.84399103,129.51,129.5,65.52]
[1763979124216,0.14399103,129.51,129.5,65.52]
[1763979124422,0.84399103,129.51,129.5,65.52]
[1763979125225,0.84399103,129.51,129.5,62.1]
[1763979125525,0.7,129.51,129.5,65.52]
[1763979125704,0.85528016,129.51,129.5,65.52]
[1763979126635,3.60822416,129.51,129.5,65.52]
[1763979127017,0.85528016,129.51,129.5,65.52]
[1763979129534,0.15528016,129.51,129.5,65.52]
[1763979129831,0.85528016,129.51,129.5,65.52]
[1763979134137,3.60822416,129.51,129.5,65.52]
[1763979134343,0.85528016,129.51,129.5,65.52]
[1763979136622,3.60822416,129.51,129.5,65.52]
[1763979144034,0.85528016,129.51,129.5,65.52]
[1763979144237,3.60822416,129.51,129.5,65.52]
[1763979145453,3.452944,129.51,129.5,65.52]
[1763979145646,3.61664556,129.51,129.5,65.52]
[1763979147447,2.91664556,129.51,129.5,65.52]
[1763979147650,3.58664556,129.51,129.5,65.52]
[1763979152858,0.16370156,129.51,129.5,65.52]
[1763979153345,0.16370156,129.51,129.5,66.21]
[1763979153729,0.16370156,129.51,129.5,65.52]
[1763979155777,2.91664556,129.51,129.5,65.52]
[1763979156055,3.58664556,129.51,129.5,65.52]
[1763979163176,2.91664556,129.51,129.5,65.52]
[1763979163764,3.58664556,129.51,129.5,65.52]
[1763979164576,3.58664556,129.51,129.5,62.1]
[1763979164963,3.58664556,129.51,129.5,65.52]
[1763979165350,3.422944,129.51,129.5,65.52]
[1763979165573,3.57533111,129.51,129.5,65.52]
[1763979165772,3.57533111,129.51,129.5,62.1]
[1763979166079,3.57533111,129.51,129.5,65.52]
[1763979166588,5.12667326,129.51,129.5,65.52]
[1763979168081,4.45667326,129.51,129.5,65.52]
[1763979168580,5.15667326,129.51,129.5,65.52]
[1763979169951,0.15238711,129.51,129.5,65.52]
[1763979170155,5.15667326,129.51,129.5,65.52]
[1763979170390,0.15238711,129.51,129.5,65.52]
[1763979171365,0.85238711,129.51,129.5,65.52]
[1763979172895,5.15667326,129.51,129.5,65.52]
[1763979179889,23.27763326,129.51,129.5,65.52]
[1763979180075,23.27763326,129.51,129.5,62.1]
[1763979182191,18.97334711,129.51,129.5,62.1]
[1763979182497,23.27763326,129.51,129.5,62.1]
[1763979183083,23.27763326,129.51,129.49,65.52]
[1763979185405,23.12524615,129.51,129.49,65.52]
[1763979185703,0.16596063,129.5,129.49,65.52]
[1763979186309,0.16596063,129.5,129.49,66.22]
[1763979186887,0.16596063,129.5,129.49,65.52]
[1763979187286,0.16596063,129.5,129.49,66.22]
[1763979187892,0.16596063,129.5,129.49,65.52]
[1763979190679,4.47024678,129.5,129.49,65.52]
[1763979196316,5.18024678,129.5,129.49,65.52]
[1763979196519,5.18024678,129.5,129.49,62.1]
[1763979197434,5.18024678,129.5,129.44,18.97632346]
[1763979197591,5.18024678,129.5,129.42,0.66]
[1763979197592,4.30428615,129.45,129.42,0.66]
[1763979197791,18.12096,129.48,129.41,0.86]
[1763979197792,4.30428615,129.43,129.41,0.86]
[1763979198002,4.30428615,129.44,129.42,3.42]
[1763979198196,5.01428615,129.44,129.42,3.42]
[1763979200818,4.30428615,129.43,129.42,3.42]
[1763979201894,4.30428615,129.43,129.41,0.86]
[1763979202111,5.01428615,129.42,129.41,0.2]
[1763979202418,0.71,129.45,129.41,0.2]
[1763979202597,4.30428615,129.42,129.41,0.2]
[1763979202798,0.71,129.45,129.41,0.2]
[1763979203022,4.30428615,129.42,129.41,0.2]
[1763979205600,4.44962659,129.42,129.41,0.2]
[1763979206915,4.44962659,129.42,129.41,62.3]
[1763979208799,4.44962659,129.42,129.41,62.96]
[1763979208800,0.14534044,129.42,129.41,62.96]
[1763979217209,0.14534044,129.42,129.41,164.96]
[1763979217639,0.14534044,129.42,129.41,168.05729373]
[1763979219325,0.14534044,129.42,129.41,164.96]
[1763979219945,0.14534044,129.42,129.41,164.3]
[1763979220363,0.14534044,129.42,129.41,164.96]
[1763979221649,0.14534044,129.42,129.41,62.96]
[1763979222332,0.85534044,129.42,129.41,65.72]
[1763979224465,5.15962659,129.42,129.41,65.72]
[1763979224970,5.15962659,129.42,129.41,0.2]
[1763979225343,4.30428615,129.41,129.4,0.2]
[1763979225566,5.01428615,129.41,129.4,0.2]
[1763979226657,3.46988211,129.41,129.4,0.2]
[1763979227040,13.40087137,129.41,129.4,0.2]
[1763979227244,17.02087137,129.41,129.4,0.2]
[1763979227438,18.12096,129.38,129.37,0.2]
[1763979227631,20.88084211,129.38,129.37,0.2]
[1763979227828,21.53084211,129.38,129.37,0.2]
[1763979230862,20.88084211,129.38,129.37,0.2]
[1763979236643,21.84698834,129.38,129.37,0.2]
[1763979239950,20.88084211,129.38,129.37,0.2]
[1763979245663,21.02165809,129.38,129.37,0.2]
[1763979247084,30.95264735,129.38,129.37,0.2]
[1763979250286,30.95264735,129.38,129.36,0.2]
[1763979250287,43.99217578,129.38,129.36,0.2]
[1763979250456,30.81183137,129.35,129.34,0.2]
[1763979250660,31.77820168,129.35,129.34,0.2]
[1763979251157,34.87885669,129.35,129.34,0.2]
[1763979253386,16.75789669,129.35,129.34,0.2]
[1763979253583,11.93098925,129.33,129.32,0.2]
[1763979253883,18.12096,129.3,129.29,0.2]
[1763979254057,41.85135981,129.3,129.29,0.2]
[1763979254581,44.95321704,129.3,129.29,0.2]
[1763979254963,44.95321704,129.3,129.28,0.2]
[1763979255170,18.12096,129.26,129.24,0.2]
[1763979255474,12.69087137,129.25,129.24,0.2]
[1763979255959,26.8334602,129.25,129.24,0.2]
[1763979256562,3.10306039,129.25,129.24,0.2]
[1763979256761,18.12096,129.27,129.24,0.2]
[1763979257172,2.75988211,129.27,129.24,0.2]
[1763979257573,20.88084211,129.27,129.24,0.2]
[1763979257775,2.75988211,129.26,129.24,0.2]
[1763979258186,2.75988211,129.25,129.24,0.2]
[1763979259392,20.88084211,129.26,129.24,0.2]
[1763979259989,18.12096,129.26,129.24,0.2]
[1763979261001,20.88084211,129.26,129.24,0.2]
[1763979261203,2.75988211,129.25,129.24,0.2]
[1763979261708,18.12096,129.26,129.24,0.2]
[1763979262004,2.75988211,129.25,129.24,0.2]
[1763979263001,20.88084211,129.26,129.24,0.2]
[1763979264010,18.12096,129.26,129.24,62.3]
[1763979264803,0.96681877,129.29,129.24,62.3]
[1763979264804,2.75988211,129.28,129.24,62.3]
[1763979265025,2.75988211,129.27,129.24,62.3]
[1763979265689,0.15288433,129.25,129.24,62.3]
[1763979269107,0.15288433,129.25,129.24,2.95988211]
[1763979269511,0.15288433,129.25,129.24,0.2]
[1763979270903,0.15288433,129.25,129.24,65.05988211]
[1763979271283,0.15288433,129.25,129.24,65.62216226]
[1763979272005,0.15288433,129.25,129.24,112.45118251]
[1763979272318,0.15288433,129.25,129.24,217.55207789]
[1763979272622,0.15288433,129.25,129.24,216.98979774]
[1763979273401,0.15288433,129.25,129.24,205.9502693]
[1763979273896,0.15288433,129.25,129.24,216.98979774]
[1763979274104,0.15787585,129.27,129.26,51.28194926]
[1763979274422,0.16326425,129.28,129.27,33.16098926]
[1763979274603,0.16326425,129.28,129.27,43.65661825]
[1763979276798,0.16326425,129.28,129.27,46.75631215]
[1763979277510,0.16326425,129.28,129.27,43.99643004]
[1763979277827,0.16326425,129.28,129.27,46.75631215]
[1763979278321,0.16287912,129.29,129.27,66.09567936]
[1763979278524,0.16287912,129.29,129.28,65.64309453]
[1763979278709,0.16287912,129.29,129.28,47.52213453]
[1763979278906,0.16287912,129.29,129.28,73.37824304]
[1763979279726,0.16287912,129.29,129.28,62.3387146]
[1763979281207,0.16287912,129.29,129.28,73.37824304]
[1763979281821,0.14841721,129.33,129.29,28.05194926]
[1763979282124,0.14841721,129.33,129.3,37.02941055]
[1763979282321,20.88084211,129.39,129.34,61.16886449]
[1763979282520,20.88084211,129.39,129.34,63.9287466]
[1763979284799,3.72602834,129.38,129.34,61.16886449]
[1763979285730,0.14779584,129.35,129.34,61.16886449]
[1763979287506,4.4604343,129.35,129.34,61.16886449]
[1763979287703,0.14779584,129.35,129.34,61.16886449]
[1763979290908,4.4604343,129.35,129.34,61.16886449]
[1763979291848,4.4604343,129.35,129.3,61.16886449]
[1763979292049,4.31263846,129.32,129.3,61.16886449]
[1763979292736,4.31263846,129.33,129.3,61.16886449]
[1763979294008,4.31263846,129.32,129.3,61.16886449]
[1763979294206,0.14216157,129.34,129.24,0.2]
[1763979294425,4.31263846,129.28,129.24,0.2]
[1763979294622,4.31263846,129.29,129.24,4.51263846]
[1763979295735,18.12096,129.3,129.25,4.31263846]
[1763979295913,0.14779584,129.35,129.28,4.31263846]
[1763979296118,4.31263846,129.33,129.28,4.31263846]
[1763979296325,18.12096,129.32,129.28,4.31263846]
[1763979296934,22.43359846,129.32,129.27,4.31263846]
[1763979297748,4.31263846,129.31,129.27,4.31263846]
[1763979298041,22.43359846,129.32,129.27,4.31263846]
[1763979298520,4.31263846,129.31,129.27,4.31263846]
[1763979299232,22.43359846,129.32,129.27,4.31263846]
[1763979299644,22.43359846,129.32,129.26,0.14216157]
[1763979299826,22.43359846,129.32,129.27,4.31263846]
[1763979300337,22.43359846,129.32,129.26,0.14216157]
[1763979300544,18.12096,129.32,129.27,4.31263846]
[1763979300740,22.43359846,129.32,129.27,4.31263846]
[1763979301840,22.43359846,129.32,129.27,163.16886449]
[1763979302052,4.31263846,129.33,129.28,4.31263846]
[1763979302522,10.90299384,129.35,129.29,4.31263846]
[1763979302523,4.31263846,129.34,129.29,4.31263846]
[1763979302747,1.11416615,129.35,129.31,4.31263846]
[1763979302969,0.14779584,129.35,129.31,0.56107387]
[1763979303178,0.14779584,129.35,129.34,4.31263846]
[1763979303376,0.14779584,129.35,129.33,4.31263846]
[1763979303677,0.14779584,129.35,129.31,65.48150295]
[1763979303965,0.14779584,129.35,129.32,4.31263846]
[1763979304365,0.14779584,129.35,129.31,4.45480003]
[1763979305248,4.45694425,129.36,129.31,4.45480003]
[1763979305249,4.31263846,129.36,129.31,4.45480003]
[1763979305651,0.16213824,129.32,129.3,79.28982449]
[1763979305862,0.16213824,129.32,129.31,4.31263846]
[1763979306571,0.16213824,129.32,129.3,22.43359846]
[1763979306775,0.16213824,129.32,129.29,71.09985375]
[1763979306776,0.16213824,129.32,129.29,18.12096]
[1763979306976,0.16213824,129.32,129.24,61.36886449]
[1763979307178,4.31263846,129.31,129.26,4.31263846]
[1763979307480,0.16213824,129.32,129.25,4.31263846]
[1763979307481,4.31263846,129.3,129.25,4.31263846]
[1763979308161,4.31263846,129.3,129.25,65.48150295]
[1763979308975,4.31263846,129.3,129.25,61.16886449]
[1763979309364,4.31263846,129.3,129.25,65.48150295]
[1763979309673,4.31263846,129.28,129.25,61.16886449]
[1763979310177,4.31263846,129.27,129.24,0.2]
[1763979310364,4.31263846,129.28,129.24,0.2]
[1763979310977,4.31263846,129.29,129.24,0.2]
[1763979311273,4.31263846,129.29,129.25,4.31263846]
[1763979311274,18.12096,129.29,129.25,4.31263846]
[1763979311772,22.43359846,129.29,129.24,4.51263846]
[1763979312574,4.31263846,129.28,129.24,4.51263846]
[1763979313976,4.31263846,129.28,129.24,0.2]
[1763979315587,4.31263846,129.27,129.24,0.2]
[1763979316481,18.12096,129.29,129.24,4.51263846]
[1763979316663,4.31263846,129.29,129.24,65.68150295]